fUSD/lending_fUSD_20250617
["ID","MTS","AMOUNT","RATE_DAILY","PERIOD"]
[366302447,1750179097076,-6243.26,0.00016767,2]
[366302448,1750179097086,-509.67,0.00016767,2]
[366302449,1750179097096,-1007.86,0.00016767,2]
[366302450,1750179097106,-830.6,0.00016767,2]
[366302451,1750179097116,-1999.01,0.00016767,2]
[366302452,1750179097127,-490.0,0.00016767,2]
[366302453,1750179097137,-1975.05,0.00016767,2]
[366302454,1750179097151,-490.0,0.00016767,2]
[366302455,1750179097162,-490.0,0.00016767,2]
[366302456,1750179097172,-490.0,0.00016767,2]
[366302457,1750179097182,-1654.4,0.00016767,2]
[366302458,1750179097193,-996.67,0.00016767,2]
[366302459,1750179097203,-490.0,0.00016767,2]
[366302460,1750179097214,-490.0,0.00016767,2]
[366302461,1750179097226,-490.0,0.00016767,2]
[366302462,1750179097237,-822.46,0.00016767,2]
[366302463,1750179097248,-490.0,0.00016767,2]
[366302464,1750179097259,-10213.31,0.00016767,2]
[366302465,1750179097269,-490.0,0.00016767,2]
[366302466,1750179097281,-490.0,0.00016767,2]
[366302467,1750179097291,-474.4322299,0.00016767,2]
[366302468,1750179097302,-5958.53,0.00016767,2]
[366302469,1750179097312,-1189.4,0.00016767,2]
[366302470,1750179097322,-490.0,0.00016767,2]
[366302471,1750179097333,-2573.53,0.00016767,2]
[366302472,1750179097343,-810.28,0.00016767,2]
[366302473,1750179097353,-465.2052553,0.00016767,2]
[366302474,1750179097364,-327.54407113,0.00016767,2]
[366302475,1750179097374,-490.0,0.00016767,2]
[366302476,1750179097384,-490.0,0.00016767,2]
[366302477,1750179097395,-850.25,0.00016767,2]
[366302478,1750179097405,-490.0,0.00016767,2]
[366302479,1750179097416,-490.0,0.00016767,2]
[366302480,1750179097426,-1770.11,0.00016767,2]
[366302481,1750179097436,-4946.44,0.00016767,2]
[366302482,1750179097447,-1133.9,0.00016767,2]
[366302483,1750179097458,-490.0,0.00016767,2]
[366302484,1750179097468,-1827.49,0.00016767,2]
[366302485,1750179097479,-11308.25,0.00016767,2]
[366302486,1750179097490,-490.0,0.00016767,2]
[366302487,1750179097501,-490.0,0.00016767,2]
[366302488,1750179097516,-490.0,0.00016767,2]
[366302489,1750179097526,-490.0,0.00016767,2]
[366302490,1750179097537,-490.0,0.00016767,2]
[366302491,1750179097548,-1248.4,0.00016767,2]
[366302492,1750179097559,-4407.39,0.00016767,2]
[366302493,1750179097570,-490.0,0.00016767,2]
[366302494,1750179097797,-490.0,0.00016767,2]
[366302495,1750179097809,-490.0,0.00016767,2]
[366302496,1750179097819,-490.0,0.00016767,2]
[366302497,1750179097829,-300.0,0.00016767,2]
[366302498,1750179097839,-490.0,0.00016767,2]
[366302499,1750179097848,-6013.87,0.00016767,2]
[366302500,1750179097858,-490.0,0.00016767,2]
[366302501,1750179097867,-1539.17,0.00016767,2]
[366302502,1750179097877,-6406.13,0.00016767,2]
[366302503,1750179097888,-860.76,0.00016767,2]
[366302504,1750179097897,-7865.34,0.00016767,2]
[366302505,1750179097907,-490.0,0.00016767,2]
[366302506,1750179097917,-490.0,0.00016767,2]
[366302507,1750179097927,-490.0,0.00016767,2]
[366302508,1750179097937,-2711.75,0.00016767,2]
[366302509,1750179097946,-490.0,0.00016767,2]
[366302510,1750179097956,-490.0,0.00016767,2]
[366302511,1750179097965,-805.32,0.00016767,2]
[366302512,1750179097975,-284.69941289,0.00016767,2]
[366302513,1750179098545,-205.30058711,0.00016767,2]
[366302514,1750179098555,-1156.33,0.00016767,2]
[366302515,1750179098565,-490.0,0.00016767,2]
[366302516,1750179098575,-549.88,0.00016767,2]
[366302517,1750179098585,-860.81,0.00016767,2]
[366302518,1750179098595,-490.0,0.00016767,2]
[366302519,1750179098605,-490.0,0.00016767,2]
[366302520,1750179098614,-490.0,0.00016767,2]
[366302521,1750179098623,-490.0,0.00016767,2]
[366302522,1750179098633,-490.0,0.00016767,2]
[366302523,1750179098643,-2865.52,0.00016767,2]
[366302524,1750179098653,-1227.23,0.00016767,2]
[366302525,1750179098663,-594.92941289,0.00016767,2]
[366302526,1750179098675,-953.66058711,0.00016767,2]
[366302527,1750179098685,-490.0,0.00016767,2]
[366302528,1750179098694,-1043.2153586,0.00016767,2]
[366302529,1750179098706,-160.6546414,0.00016767,2]
[366302530,1750179098716,-669.97,0.00016767,2]
[366302531,1750179098726,-490.0,0.00016767,2]
[366302532,1750179098736,-490.0,0.00016767,2]
[366302533,1750179098746,-99.6206574,0.00016767,2]
[366302534,1750179098783,-605.1093426,0.00016767,2]
[366302535,1750179098793,-2005.9949765,0.00016767,2]
[366302536,1750179098848,-151.0,0.00016602,2]
[366302537,1750179098858,-1556.4850235,0.00016767,2]
[366302538,1750179098869,-448.745207,0.00016767,2]
[366302539,1750179098879,-490.0,0.00016767,2]
[366302540,1750179098888,-490.0,0.00016767,2]
[366302541,1750179098898,-490.0,0.00016767,2]
[366302542,1750179098908,-490.0,0.00016767,2]
[366302543,1750179098917,-490.0,0.00016767,2]
[366302544,1750179098927,-448.745206,0.00016767,2]
[366302545,1750179098937,-490.0,0.00016767,2]
[366302546,1750179098947,-490.0,0.00016767,2]
[366302547,1750179098957,-1527.75,0.00016767,2]
[366302548,1750179098967,-561.98,0.00016767,2]
[366302549,1750179098976,-490.0,0.00016767,2]
[366302550,1750179098986,-490.0,0.00016767,2]
[366302551,1750179098996,-996.48,0.00016767,2]
[366302552,1750179099006,-490.0,0.00016767,2]
[366302553,1750179099015,-2338.68,0.00016767,2]
[366302554,1750179099026,-490.0,0.00016767,2]
[366302555,1750179099035,-832.85,0.00016767,2]
[366302556,1750179099045,-490.0,0.00016767,2]
[366302557,1750179099055,-490.0,0.00016767,2]
[366302558,1750179099064,-1058.65,0.00016767,2]
[366302559,1750179099075,-490.0,0.00016767,2]
[366302560,1750179099085,-490.0,0.00016767,2]
[366302561,1750179099095,-490.0,0.00016767,2]
[366302562,1750179099105,-1696.09,0.00016767,2]
[366302563,1750179099115,-490.0,0.00016767,2]
[366302564,1750179099125,-1784.36,0.00016767,2]
[366302565,1750179099134,-490.0,0.00016767,2]
[366302566,1750179099144,-490.0,0.00016767,2]
[366302567,1750179099153,-301.73091405,0.00016767,2]
[366302568,1750179099171,-526.74,0.00016438,2]
[366302569,1750179099181,-40.97316452,0.00016767,2]
[366302570,1750179099191,-490.0,0.00016767,2]
[366302571,1750179099200,-490.0,0.00016767,2]
[366302572,1750179099210,-2665.98,0.00016767,2]
[366302573,1750179099220,-490.0,0.00016767,2]
[366302574,1750179099231,-490.0,0.00016767,2]
[366302575,1750179099241,-2519.09,0.00016767,2]
[366302576,1750179099251,-1655.08,0.00016767,2]
[366302577,1750179099261,-490.0,0.00016767,2]
[366302578,1750179099271,-4264.82,0.00016767,2]
[366302579,1750179099282,-695.16,0.00016767,2]
[366302580,1750179099292,-351.66696632,0.00016767,2]
[366302581,1750179099302,-490.0,0.00016767,2]
[366302582,1750179099312,-1590.78,0.00016767,2]
[366302583,1750179099322,-1027.36,0.00016767,2]
[366302584,1750179099331,-628.86,0.00016767,2]
[366302585,1750179099341,-490.0,0.00016767,2]
[366302586,1750179099351,-1727.59,0.00016767,2]
[366302587,1750179099361,-315.15217677,0.00016767,2]
[366302588,1750179099371,-490.0,0.00016767,2]
[366302589,1750179099381,-490.0,0.00016767,2]
[366302590,1750179099390,-490.0,0.00016767,2]
[366302591,1750179099400,-490.0,0.00016767,2]
[366302592,1750179099410,-705.75,0.00016767,2]
[366302593,1750179099420,-490.0,0.00016767,2]
[366302594,1750179099430,-1263.19,0.00016767,2]
[366302595,1750179099440,-490.0,0.00016767,2]
[366302596,1750179099451,-969.67,0.00016767,2]
[366302597,1750179099461,-490.0,0.00016767,2]
[366302598,1750179099471,-634.46115659,0.00016767,2]
[366302599,1750179099482,-490.0,0.00016767,2]
[366302600,1750179099493,-1222.19,0.00016767,2]
[366302601,1750179099504,-537.53,0.00016767,2]
[366302602,1750179099518,-1068.65,0.00016767,2]
[366302603,1750179099529,-1082.06,0.00016767,2]
[366302604,1750179099541,-539.12,0.00016767,2]
[366302605,1750179099553,-622.03,0.00016767,2]
[366302606,1750179099564,-1237.16,0.00016767,2]
[366302607,1750179099575,-490.0,0.00016767,2]
[366302608,1750179099587,-860.53,0.00016767,2]
[366302609,1750179099598,-1268.17,0.00016767,2]
[366302610,1750179099608,-490.52339258,0.00016767,2]
[366302611,1750179099618,-490.0,0.00016767,2]
[366302612,1750179099629,-490.0,0.00016767,2]
[366302613,1750179099640,-356.54422082,0.00016767,2]
[366302614,1750179099651,-4142.56,0.00016767,2]
[366302615,1750179099662,-490.0,0.00016767,2]
[366302616,1750179099673,-220.68049323,0.00016767,2]
[366302617,1750179099688,-4866.28950677,0.00016767,2]
[366302618,1750179099700,-500.0,0.0001677,2]
[366302619,1750179099711,-500.0,0.00016773,2]
[366302620,1750179099722,-500.09929902,0.00016773,2]
[366302621,1750179099734,-500.0,0.00016773,2]
[366302622,1750179099746,-500.0,0.00016773,2]
[366302623,1750179099757,-500.0,0.00016773,2]
[366302624,1750179099768,-500.0,0.00016773,2]
[366302625,1750179099779,-616.68876641,0.00016773,2]
[366302626,1750179099790,-500.0,0.00016773,2]
[366302627,1750179099802,-500.0,0.00016773,2]
[366302628,1750179099813,-415.9224278,0.00016773,2]
[366302629,1750179099826,-84.0775722,0.00016773,2]
[366302630,1750179099836,-352.78659823,0.00016773,2]
[366302631,1750179100621,-300.0,0.00016434,2]
[366302632,1750179100632,-490.0,0.00016438,2]
[366302633,1750179100642,-151.0,0.00016438,2]
[366302634,1750179100652,-490.0,0.00016438,2]
[366302635,1750179100662,-59.06412812,0.00016438,2]
[366302636,1750179100695,-170.85,0.00015971,2]
[366302637,1750179100705,-573.96587188,0.00016438,2]
[366302638,1750179100715,-476.06534871,0.00016438,2]
[366302639,1750179100727,-13.93465129,0.00016438,2]
[366302640,1750179100738,-490.0,0.00016438,2]
[366302641,1750179100748,-151.0,0.00016602,2]
[366302642,1750179100757,-386.06534871,0.00016602,2]
[366302643,1750179100769,-103.93465129,0.00016602,2]
[366302644,1750179100779,-151.0,0.000167,2]
[366302645,1750179100789,-490.0,0.00016767,2]
[366302646,1750179100800,-147.21340177,0.00016773,2]
[366302647,1750179100810,-160.02423597,0.00016773,2]
[366302648,1750179100821,-500.0,0.00016773,2]
[366302649,1750179100831,-500.0,0.00016773,2]
[366302650,1750179100842,-500.0,0.00016773,2]
[366302651,1750179100851,-500.0,0.00016773,2]
[366302652,1750179100861,-500.0,0.00016773,2]
[366302653,1750179100872,-500.0,0.00016773,2]
[366302654,1750179100883,-500.0,0.00016773,2]
[366302655,1750179100893,-348.79022497,0.00016773,2]
[366302656,1750179100905,-151.20977503,0.00016773,2]
[366302657,1750179100915,-364.96952609,0.00016773,2]
[366302658,1750179100925,-515.18094915,0.00016773,2]
[366302659,1750179100935,-500.0,0.00016773,2]
[366302660,1750179100945,-513.10590071,0.00016773,2]
[366302661,1750179100956,-500.0,0.00016773,2]
[366302662,1750179100965,-500.0,0.00016773,2]
[366302663,1750179100977,-500.0,0.00016773,2]
[366302664,1750179100987,-500.0,0.00016773,2]
[366302665,1750179100997,-528.44246562,0.00016773,2]
[366302666,1750179101007,-165.77676122,0.00016773,2]
[366302667,1750179101018,-500.0,0.00016773,2]
[366302668,1750179101028,-500.0,0.00016773,2]
[366302669,1750179101039,-500.0,0.00016773,2]
[366302670,1750179101049,-500.0,0.00016773,2]
[366302671,1750179101059,-510.02763924,0.00016773,2]
[366302672,1750179101069,-500.0,0.00016773,2]
[366302673,1750179101084,-500.0,0.00016773,2]
[366302674,1750179101095,-264.15,0.00016777,2]
[366302675,1750179101105,-170.85,0.00016792,2]
[366302676,1750179101115,-276.153667,0.00016794,2]
[366302677,1750179101125,-150.0,0.00016794,2]
[366302678,1750179101135,-500.0,0.00016794,2]
[366302679,1750179101145,-19889.95,0.000168,2]
[366302680,1750179101155,-738.99,0.000168,2]
[366302681,1750179101166,-59579.10792617,0.000168,2]
[366302682,1750179101176,-178.651436,0.000168,2]
[366302683,1750179101185,-151.0,0.000168,2]
[366302684,1750179101195,-151.0,0.000168,2]
[366302685,1750179101206,-1532.068285,0.000168,2]
[366302686,1750179101216,-1532.068285,0.000168,2]
[366302687,1750179101228,-151.0,0.000168,2]
[366302688,1750179101238,-151.0,0.000168,2]
[366302689,1750179101247,-722.619809,0.000168,2]
[366302690,1750179101257,-722.619809,0.000168,2]
[366302691,1750179101267,-151.0,0.000168,2]
[366302692,1750179101277,-151.0,0.000168,2]
[366302693,1750179101288,-151.0,0.000168,2]
[366302694,1750179101298,-151.0,0.000168,2]
[366302695,1750179101309,-151.0,0.000168,2]
[366302696,1750179101319,-2291.568294,0.000168,2]
[366302697,1750179101330,-2291.568288,0.000168,2]
[366302698,1750179101340,-3734.85670643,0.000168,2]
[366302699,1750179101350,-151.0,0.000168,2]
[366302700,1750179101360,-869.85,0.000168,2]
[366302701,1750179101370,-151.0,0.000168,2]
[366302702,1750179101381,-300.0,0.000168,6]
[366302703,1750179101392,-378.33254744,0.00016808,2]
[366302704,1750179101402,-16600.62120784,0.00016813,2]
[366302705,1750179101413,-500.0,0.00016822,2]
[366302706,1750179101423,-370.0,0.00016849,2]
[366302707,1750179101433,-168.0,0.00016859,2]
[366302708,1750179101442,-871.27933146,0.00016866,2]
[366302709,1750179101453,-4796.07405921,0.0001688,2]
[366302710,1750179101464,-200.0,0.0001688,2]
[366302711,1750179101477,-200.0,0.0001688,2]
[366302712,1750179101488,-200.0,0.0001688,2]
[366302713,1750179101500,-200.0,0.0001688,2]
[366302714,1750179101515,-200.0,0.0001688,2]
[366302715,1750179101526,-200.0,0.0001688,2]
[366302716,1750179101536,-200.0,0.0001688,2]
[366302717,1750179101549,-200.0,0.0001688,2]
[366302718,1750179101559,-200.0,0.0001688,2]
[366302719,1750179101569,-200.0,0.0001688,2]
[366302720,1750179101580,-335.375871,0.0001688,2]
[366302721,1750179101591,-151.0,0.0001688,2]
[366302722,1750179101602,-151.0,0.0001688,2]
[366302723,1750179101613,-16600.62120784,0.00016886,2]
[366302724,1750179101623,-151.0,0.00016899,2]
[366302725,1750179101633,-286.76299,0.00016899,2]
[366302726,1750179101644,-151.0,0.00016899,2]
[366302727,1750179101654,-151.0,0.00016899,2]
[366302728,1750179101664,-388.877299,0.00016899,2]
[366302729,1750179101675,-388.877299,0.00016899,2]
[366302730,1750179102001,-151.0,0.00016899,2]
[366302731,1750179102011,-209.864174,0.00016899,2]
[366302732,1750179102021,-261.257853,0.00016899,2]
[366302733,1750179102031,-261.257853,0.00016899,2]
[366302734,1750179102040,-162.553686,0.00016899,2]
[366302735,1750179102050,-162.553686,0.00016899,2]
[366302736,1750179102060,-242.579234,0.00016899,2]
[366302737,1750179102070,-242.579234,0.00016899,2]
[366302738,1750179102080,-500.0,0.00016899,2]
[366302739,1750179102090,-500.0,0.00016899,2]
[366302740,1750179102100,-300.0,0.000169,6]
[366302741,1750179102109,-1000.0,0.000169,2]
[366302742,1750179102119,-1000.0,0.000169,2]
[366302743,1750179102129,-1000.0,0.000169,2]
[366302744,1750179102139,-1000.0,0.000169,2]
[366302745,1750179102148,-1000.0,0.000169,2]
[366302746,1750179102157,-1000.0,0.000169,2]
[366302747,1750179102167,-1000.0,0.000169,2]
[366302748,1750179102176,-1000.0,0.000169,2]
[366302749,1750179102186,-1000.0,0.000169,2]
[366302750,1750179102196,-250000.0,0.000169,2]
[366302751,1750179102207,-1000.0,0.000169,2]
[366302752,1750179102217,-151.0,0.000169,2]
[366302753,1750179102228,-151.0,0.000169,2]
[366302754,1750179102237,-151.0,0.000169,2]
[366302755,1750179102247,-151.0,0.000169,2]
[366302756,1750179102257,-165.700937,0.000169,2]
[366302757,1750179102266,-165.700937,0.000169,2]
[366302758,1750179102275,-5000.0,0.000169,2]
[366302759,1750179102285,-347.821451,0.000169,2]
[366302760,1750179102295,-347.821451,0.000169,2]
[366302761,1750179102306,-5000.0,0.000169,2]
[366302762,1750179102317,-6868.0,0.000169,2]
[366302763,1750179102327,-648.949849,0.000169,2]
[366302764,1750179102337,-648.949849,0.000169,2]
[366302765,1750179102347,-201.605865,0.000169,2]
[366302766,1750179102357,-201.605865,0.000169,2]
[366302767,1750179102367,-187.440199,0.000169,2]
[366302768,1750179102377,-187.440199,0.000169,2]
[366302769,1750179102387,-151.0,0.000169,2]
[366302770,1750179102397,-232.176613,0.000169,2]
[366302771,1750179102406,-232.176613,0.000169,2]
[366302772,1750179102416,-151.0,0.000169,2]
[366302773,1750179102426,-151.0,0.000169,2]
[366302774,1750179102435,-1214.664701,0.000169,2]
[366302775,1750179102445,-151.0,0.000169,2]
[366302776,1750179102454,-151.0,0.000169,2]
[366302777,1750179102464,-226.066407,0.000169,2]
[366302778,1750179102474,-226.066407,0.000169,2]
[366302779,1750179102486,-151.0,0.000169,2]
[366302780,1750179102496,-199.783054,0.000169,2]
[366302781,1750179102507,-199.783054,0.000169,2]
[366302782,1750179102517,-151.0,0.000169,2]
[366302783,1750179102528,-316.022161,0.000169,2]
[366302784,1750179102538,-316.022161,0.000169,2]
[366302785,1750179102548,-5654.92200953,0.000169,2]
[366302786,1750179102558,-182.769773,0.000169,2]
[366302787,1750179102567,-182.769773,0.000169,2]
[366302788,1750179102577,-848.73,0.00016922,5]
[366302789,1750179102588,-416.91,0.00016922,2]
[366302790,1750179102598,-378.33254744,0.00016926,2]
[366302791,1750179102609,-151.0,0.0001693,2]
[366302792,1750179102618,-160.490178,0.0001693,2]
[366302793,1750179102628,-160.490178,0.0001693,2]
[366302794,1750179102638,-875.204733,0.0001693,2]
[366302795,1750179102649,-875.204733,0.0001693,2]
[366302796,1750179102659,-500.0,0.0001693,2]
[366302797,1750179102669,-500.0,0.0001693,2]
[366302798,1750179102680,-500.0,0.0001693,2]
[366302799,1750179102690,-237.76466274,0.0001693,2]
[366302800,1750179102701,-300.0,0.0001693,2]
[366302801,1750179102711,-300.0,0.0001693,2]
[366302802,1750179102721,-300.0,0.0001693,2]
[366302803,1750179102734,-12500.0,0.0001693,2]
[366302804,1750179102744,-151.0,0.00016931,2]
[366302805,1750179102754,-151.0,0.00016931,2]
[366302806,1750179102764,-151.0,0.00016931,2]
[366302807,1750179102773,-151.0,0.00016931,2]
[366302808,1750179102783,-151.0,0.00016931,2]
[366302809,1750179102793,-177.840972,0.00016931,2]
[366302810,1750179102802,-165.700937,0.00016931,2]
[366302811,1750179102812,-165.700937,0.00016931,2]
[366302812,1750179102822,-165.700937,0.00016931,2]
[366302813,1750179102832,-165.700937,0.00016931,2]
[366302814,1750179102841,-347.821451,0.00016931,2]
[366302815,1750179102851,-347.821451,0.00016931,2]
[366302816,1750179102861,-347.821451,0.00016931,2]
[366302817,1750179102870,-347.821451,0.00016931,2]
[366302818,1750179102881,-648.949849,0.00016931,2]
[366302819,1750179102890,-648.949849,0.00016931,2]
[366302820,1750179102900,-648.949849,0.00016931,2]
[366302821,1750179102910,-648.949857,0.00016931,2]
[366302822,1750179102919,-201.605865,0.00016931,2]
[366302823,1750179102929,-201.605865,0.00016931,2]
[366302824,1750179102939,-201.605865,0.00016931,2]
[366302825,1750179102948,-201.60587,0.00016931,2]
[366302826,1750179102958,-187.440199,0.00016931,2]
[366302827,1750179102968,-187.440199,0.00016931,2]
[366302828,1750179102979,-187.440199,0.00016931,2]
[366302829,1750179102989,-187.440193,0.00016931,2]
[366302830,1750179102998,-2385.084473,0.00016931,2]
[366302831,1750179103007,-158.765337,0.00016931,2]
[366302832,1750179103017,-151.0,0.00016931,2]
[366302833,1750179103026,-151.0,0.00016931,2]
[366302834,1750179103036,-2643.996566,0.00016931,2]
[366302835,1750179103045,-232.176613,0.00016931,2]
[366302836,1750179103055,-232.176613,0.00016931,2]
[366302837,1750179103064,-151.0,0.00016931,2]
[366302838,1750179103073,-151.0,0.00016931,2]
[366302839,1750179103083,-232.176613,0.00016931,2]
[366302840,1750179103093,-232.176621,0.00016931,2]
[366302841,1750179103102,-151.0,0.00016931,2]
[366302842,1750179103112,-171.821267,0.00016931,2]
[366302843,1750179103123,-1532.068285,0.00016931,2]
[366302844,1750179103133,-1532.068285,0.00016931,2]
[366302845,1750179103143,-1532.068285,0.00016931,2]
[366302846,1750179103153,-1532.068285,0.00016931,2]
[366302847,1750179103163,-151.0,0.00016931,2]
[366302848,1750179103173,-151.0,0.00016931,2]
[366302849,1750179103183,-151.0,0.00016931,2]
[366302850,1750179103193,-211.449408,0.00016931,2]
[366302851,1750179103203,-151.0,0.00016931,2]
[366302852,1750179103212,-151.0,0.00016931,2]
[366302853,1750179103222,-151.0,0.00016931,2]
[366302854,1750179103235,-151.0,0.00016931,2]
[366302855,1750179103245,-722.619809,0.00016931,2]
[366302856,1750179103255,-722.619809,0.00016931,2]
[366302857,1750179103265,-722.619809,0.00016931,2]
[366302858,1750179103275,-722.619809,0.00016931,2]
[366302859,1750179103285,-604.965627,0.00016931,2]
[366302860,1750179103295,-604.965627,0.00016931,2]
[366302861,1750179103305,-151.0,0.00016931,2]
[366302862,1750179103314,-151.0,0.00016931,2]
[366302863,1750179103323,-151.0,0.00016931,2]
[366302864,1750179103333,-151.0,0.00016931,2]
[366302865,1750179103343,-151.0,0.00016931,2]
[366302866,1750179103353,-151.0,0.00016931,2]
[366302867,1750179103363,-1214.664701,0.00016931,2]
[366302868,1750179103373,-1214.664701,0.00016931,2]
[366302869,1750179103383,-1214.664701,0.00016931,2]
[366302870,1750179103392,-1214.664701,0.00016931,2]
[366302871,1750179103401,-151.0,0.00016931,2]
[366302872,1750179103411,-151.0,0.00016931,2]
[366302873,1750179103420,-151.0,0.00016931,2]
[366302874,1750179103430,-151.0,0.00016931,2]
[366302875,1750179103440,-151.0,0.00016931,2]
[366302876,1750179103450,-151.0,0.00016931,2]
[366302877,1750179103460,-151.0,0.00016931,2]
[366302878,1750179103470,-151.0,0.00016931,2]
[366302879,1750179103482,-226.066407,0.00016931,2]
[366302880,1750179103492,-226.066407,0.00016931,2]
[366302881,1750179103504,-226.066407,0.00016931,2]
[366302882,1750179103515,-226.066407,0.00016931,2]
[366302883,1750179103525,-388.877299,0.00016931,2]
[366302884,1750179103535,-388.877299,0.00016931,2]
[366302885,1750179103546,-388.877299,0.00016931,2]
[366302886,1750179103555,-388.877299,0.00016931,2]
[366302887,1750179103565,-151.0,0.00016931,2]
[366302888,1750179103575,-151.0,0.00016931,2]
[366302889,1750179103586,-151.0,0.00016931,2]
[366302890,1750179103596,-151.0,0.00016931,2]
[366302891,1750179103607,-261.257853,0.00016931,2]
[366302892,1750179103617,-261.257853,0.00016931,2]
[366302893,1750179103626,-261.257853,0.00016931,2]
[366302894,1750179103635,-261.257853,0.00016931,2]
[366302895,1750179103645,-199.783054,0.00016931,2]
[366302896,1750179103655,-199.783054,0.00016931,2]
[366302897,1750179103665,-199.783054,0.00016931,2]
[366302898,1750179103674,-199.783054,0.00016931,2]
[366302899,1750179103684,-151.0,0.00016931,2]
[366302900,1750179103694,-151.0,0.00016931,2]
[366302901,1750179103704,-316.022161,0.00016931,2]
[366302902,1750179103713,-316.022161,0.00016931,2]
[366302903,1750179103724,-316.022161,0.00016931,2]
[366302904,1750179103735,-316.022161,0.00016931,2]
[366302905,1750179103746,-162.553686,0.00016931,2]
[366302906,1750179103756,-162.553686,0.00016931,2]
[366302907,1750179103766,-162.553686,0.00016931,2]
[366302908,1750179103776,-162.553686,0.00016931,2]
[366302909,1750179103786,-242.579234,0.00016931,2]
[366302910,1750179103798,-242.579234,0.00016931,2]
[366302911,1750179103808,-242.579234,0.00016931,2]
[366302912,1750179103819,-242.579234,0.00016931,2]
[366302913,1750179103829,-151.656524,0.00016931,2]
[366302914,1750179103840,-151.0,0.00016931,2]
[366302915,1750179103850,-182.769773,0.00016931,2]
[366302916,1750179103861,-182.769773,0.00016931,2]
[366302917,1750179103871,-182.769773,0.00016931,2]
[366302918,1750179103881,-182.769773,0.00016931,2]
[366302919,1750179103893,-616.313918,0.00016931,2]
[366302920,1750179103903,-616.313918,0.00016931,2]
[366302921,1750179103914,-616.313918,0.00016931,2]
[366302922,1750179103925,-616.313918,0.00016931,2]
[366302923,1750179103935,-358.758264,0.00016931,2]
[366302924,1750179103948,-358.758264,0.00016931,2]
[366302925,1750179103958,-358.758264,0.00016931,2]
[366302926,1750179103969,-358.758264,0.00016931,2]
[366302927,1750179103982,-181.849325,0.00016931,2]
[366302928,1750179103992,-181.849325,0.00016931,2]
[366302929,1750179104003,-181.849325,0.00016931,2]
[366302930,1750179104013,-181.849325,0.00016931,2]
[366302931,1750179104022,-151.0,0.00016931,2]
[366302932,1750179104032,-151.0,0.00016931,2]
[366302933,1750179104042,-151.0,0.00016931,2]
[366302934,1750179104053,-151.0,0.00016931,2]
[366302935,1750179104063,-162.81244,0.00016931,2]
[366302936,1750179104073,-159.308427,0.00016931,2]
[366302937,1750179104083,-490.0,0.00016931,2]
[366302938,1750179104093,-160.490178,0.00016931,2]
[366302939,1750179104103,-160.490178,0.00016931,2]
[366302940,1750179104112,-152.936387,0.00016931,2]
[366302941,1750179104123,-162.811095,0.00016931,2]
[366302942,1750179104133,-162.811095,0.00016931,2]
[366302943,1750179104143,-162.811095,0.00016931,2]
[366302944,1750179104153,-162.811095,0.00016931,2]
[366302945,1750179104163,-151.0,0.00016931,2]
[366302946,1750179104172,-151.0,0.00016931,2]